fUST/lending_fUST_20250306
["ID","MTS","AMOUNT","RATE_DAILY","PERIOD"]
[355514478,1741223448285,-306.0,0.00046955,30]
[355514479,1741223448294,-306.0,0.00046955,30]
[355514480,1741223448304,-306.0,0.00046955,30]
[355514481,1741223448314,-153.0,0.00046955,30]
[355514482,1741223448324,-306.0,0.00046955,30]
[355514483,1741223448334,-281.5453959,0.00046955,30]
[355514484,1741223448344,-200.0,0.000471,120]
[355514485,1741223448354,-1197.29695256,0.00047113,4]
[355514486,1741223448363,-500.0,0.00047123,120]
[355514487,1741223448373,-500.0,0.00047123,120]
[355514488,1741223448382,-500.0,0.00047123,120]
[355514489,1741223448390,-500.0,0.00047123,120]
[355514490,1741223448400,-500.0,0.00047123,120]
[355514491,1741223448409,-249.653674,0.00047123,120]
[355514492,1741223448420,-249.653674,0.00047123,120]
[355514493,1741223448431,-500.0,0.00047123,120]
[355514494,1741223448440,-500.0,0.00047123,120]
[355514495,1741223448450,-500.0,0.00047123,120]
[355514496,1741223448460,-14415.11,0.00047123,7]
[355514497,1741223448469,-500.0,0.00047123,30]
[355514498,1741223448479,-501.82,0.00047123,120]
[355514499,1741223448489,-500.0,0.00047123,120]
[355514500,1741223448498,-500.0,0.00047123,120]
[355514501,1741223448508,-436.92,0.00047123,120]
[355514502,1741223448517,-617.96154234,0.00047123,120]
[355514503,1741223448527,-500.0,0.00047123,120]
[355514504,1741223448536,-500.0,0.00047123,120]
[355514505,1741223448546,-579.79,0.00047123,120]
[355514506,1741223448555,-500.0,0.00047123,120]
[355514507,1741223448564,-200.0,0.00047279,120]
[355514508,1741223448573,-1000.0,0.00047279,10]
[355514509,1741223448586,-500.0,0.00047279,10]
[355514510,1741223448595,-1000.0,0.00047279,10]
[355514511,1741223448605,-1000.0,0.00047279,10]
[355514512,1741223448615,-1000.0,0.00047279,10]
[355514513,1741223448624,-500.0,0.00047279,10]
[355514514,1741223448634,-1000.0,0.00047279,10]
[355514515,1741223448643,-200.0,0.00047328,120]
[355514516,1741223448653,-500.0,0.00047397,120]
[355514517,1741223448662,-500.0,0.00047397,120]
[355514518,1741223448672,-500.0,0.00047397,120]
[355514519,1741223448682,-499.0,0.00047397,120]
[355514520,1741223448691,-500.0,0.00047397,120]
[355514521,1741223448701,-249.653674,0.00047397,120]
[355514522,1741223448711,-249.653674,0.00047397,120]
[355514523,1741223448721,-500.79665043,0.00047397,120]
[355514524,1741223448730,-500.0,0.00047397,120]
[355514525,1741223448740,-500.0,0.00047397,120]
[355514526,1741223448749,-14415.11,0.00047397,7]
[355514527,1741223448759,-500.0,0.00047397,30]
[355514528,1741223448769,-501.82,0.00047397,120]
[355514529,1741223448782,-500.0,0.00047397,120]
[355514530,1741223448792,-500.0,0.00047397,120]
[355514531,1741223448802,-500.0,0.00047397,120]
[355514532,1741223448811,-500.0,0.00047397,120]
[355514533,1741223448822,-579.79,0.00047397,120]
[355514534,1741223448834,-500.0,0.00047397,120]
[355514535,1741223448844,-153.0,0.00047655,30]
[355514536,1741223448856,-153.0,0.00047655,30]
[355514537,1741223448866,-153.0,0.00047655,30]
[355514538,1741223448875,-153.0,0.00047655,30]
[355514539,1741223448887,-153.0,0.00047655,30]
[355514540,1741223448896,-153.0,0.00047655,30]
[355514541,1741223448905,-153.0,0.00047655,30]
[355514542,1741223448915,-153.0,0.00047655,30]
[355514543,1741223448924,-153.0,0.00047655,30]
[355514544,1741223448934,-153.0,0.00047655,30]
[355514545,1741223448943,-153.0,0.00047655,30]
[355514546,1741223448953,-153.0,0.00047655,30]
[355514547,1741223448963,-153.0,0.00047655,30]
[355514548,1741223448973,-306.4121236,0.00047655,30]
[355514549,1741223448982,-153.0,0.00047655,30]
[355514550,1741223448992,-153.0,0.00047655,30]
[355514551,1741223449002,-153.0,0.00047655,30]
[355514552,1741223449011,-153.0,0.00047655,30]
[355514553,1741223449020,-1197.29695256,0.00047661,4]
[355514554,1741223449138,-500.0,0.00047671,120]
[355514555,1741223449152,-500.0,0.00047671,120]
[355514556,1741223449169,-500.0,0.00047671,120]
[355514557,1741223449178,-500.0,0.00047671,120]
[355514558,1741223449189,-249.653674,0.00047671,120]
[355514559,1741223449205,-249.653674,0.00047671,120]
[355514560,1741223449215,-500.0,0.00047671,120]
[355514561,1741223449225,-500.0,0.00047671,120]
[355514562,1741223449235,-14415.11,0.00047671,7]
[355514563,1741223449245,-500.0,0.00047671,30]
[355514564,1741223449254,-501.82,0.00047671,120]
[355514565,1741223449264,-162.35,0.00047671,120]
[355514566,1741223449274,-500.0,0.00047671,120]
[355514567,1741223449283,-500.0,0.00047671,120]
[355514568,1741223449292,-500.0,0.00047671,120]
[355514569,1741223449302,-579.79,0.00047671,120]
[355514570,1741223449312,-500.0,0.00047671,120]
[355514571,1741223449321,-558.334779,0.00047783,30]
[355514572,1741223449332,-558.334779,0.00047783,30]
[355514573,1741223449348,-1000.0,0.000478,120]
[355514574,1741223449357,-200.0,0.00047821,120]
[355514575,1741223449366,-184.44250669,0.000479,45]
[355514576,1741223449376,-500.0,0.00047945,120]
[355514577,1741223449385,-500.0,0.00047945,120]
[355514578,1741223449394,-500.0,0.00047945,120]
[355514579,1741223449404,-249.653674,0.00047945,120]
[355514580,1741223449413,-249.653674,0.00047945,120]
[355514581,1741223449423,-500.0,0.00047945,120]
[355514582,1741223449432,-500.0,0.00047945,120]
[355514583,1741223449443,-14415.11,0.00047945,7]
[355514584,1741223449457,-500.0,0.00047945,30]
[355514585,1741223449467,-501.82,0.00047945,120]
[355514586,1741223449476,-500.0,0.00047945,120]
[355514587,1741223449486,-500.0,0.00047945,120]
[355514588,1741223449495,-500.0,0.00047945,120]
[355514589,1741223449505,-579.79,0.00047945,120]
[355514590,1741223449514,-500.0,0.00047945,120]
[355514591,1741223449524,-200.0,0.00047948,120]
[355514592,1741223449533,-153.0,0.00047984,30]
[355514593,1741223449544,-153.0,0.00047984,30]
[355514594,1741223449554,-153.0,0.00047984,30]
[355514595,1741223449564,-153.0,0.00047984,30]
[355514596,1741223449574,-153.0,0.00047984,30]
[355514597,1741223449587,-153.0,0.00047984,30]
[355514598,1741223449597,-153.0,0.00047984,30]
[355514599,1741223449607,-306.0,0.00047984,30]
[355514600,1741223449616,-153.0,0.00047984,30]
[355514601,1741223449626,-153.0,0.00047984,30]
[355514602,1741223449636,-153.0,0.00047984,30]
[355514603,1741223449645,-153.0,0.00047984,30]
[355514604,1741223449655,-153.0,0.00047984,30]
[355514605,1741223449665,-153.0,0.00047984,30]
[355514606,1741223449675,-3591.89085768,0.0004799,4]
[355514607,1741223449684,-1001.81,0.00048,120]
[355514608,1741223449693,-185.0,0.00048,120]
[355514609,1741223449703,-500.0,0.00048,30]
[355514610,1741223449712,-127797.29227106,0.00048,120]
[355514611,1741223449727,-3432.04407571,0.00048,120]
[355514612,1741223449736,-2599.00137266,0.00048,30]
[355514613,1741223449745,-249.653674,0.00048,120]
[355514614,1741223449754,-249.653674,0.00048,120]
[355514615,1741223449764,-502.07616565,0.00048,10]
[355514616,1741223449774,-500.0,0.0004807,90]
[355514617,1741223449787,-1197.29695256,0.0004809,4]
[355514618,1741223449796,-6956.51988865,0.000481,30]
[355514619,1741223449859,-830.6395,0.000481,30]
[355514620,1741223449871,-6741.13307684,0.000481,30]
[355514628,1741224510281,752.70566898,0.00021,4]
[355514629,1741224512777,18347.354881,0.000145,2]
[355514630,1741224513548,1204.69656287,0.00015,2]
[355514653,1741224632804,-387.10989545,0.0002061,2]
[355514655,1741224632814,-32.48840375,0.000299,5]
[355514657,1741224632903,-865.87547574,0.000299,5]
[355514658,1741224632914,-704.92544017,0.000299,2]
[355514659,1741224632924,-359.18908576,0.0002999,2]
[355514660,1741224632935,-300.0,0.00029998,2]
[355514661,1741224632946,-500.0,0.00029999,2]
[355514662,1741224632955,-500.0,0.00029999,2]
[355514663,1741224632965,-500.0,0.00029999,2]
[355514664,1741224632975,-500.0,0.00029999,2]
[355514665,1741224632985,-411.21799924,0.00029999,2]
[355514666,1741224632995,-500.0,0.00029999,2]
[355514667,1741224633005,-153.05622037,0.00029999,2]
[355514668,1741224633014,-156.80199991,0.00029999,2]
[355514669,1741224633024,-329.54992141,0.00029999,2]
[355514670,1741224633034,-181.98555928,0.00029999,2]
[355514671,1741224633045,-30286.37389998,0.0003,60]
[355514672,1741224633058,-1033.37988527,0.0003,60]
[355514723,1741224638624,-5879.14384409,0.0003,60]
[355514905,1741224643659,-45236.61962714,0.0003,60]
[355515126,1741224646658,-710.4,0.0003,60]
[355515182,1741225290111,155.0,0.0002,10]
[355515200,1741225832957,-889.87526814,0.000269,4]
[355515202,1741225832967,-768.33863769,0.00027956,2]
[355515209,1741225833026,-1693.76007781,0.00027956,2]
[355515211,1741225833035,-1055.70371641,0.00028589,2]
[355515216,1741225838689,-565.92024344,0.00028589,2]
[355515220,1741225838833,-1133.16646105,0.00028589,2]
[355515222,1741225838842,-624.01291183,0.000299,2]
[355515224,1741225838851,-222.83382584,0.0002999,2]
[355515226,1741225838861,-297.99744884,0.00029999,2]
[355515227,1741225838870,-164.53430141,0.0003,60]
[355515326,1741225843974,-45636.99999999,0.0003,60]
[355515329,1741225843996,-1031.17421405,0.0003,60]
[355515352,1741225846794,-4559.0,0.0003,60]
[355515353,1741225846832,-701.85557485,0.0003,60]
[355515412,1741227031937,-469.16655596,0.00028764,2]
[355515414,1741227031948,-740.601858,0.00028889,2]
[355515416,1741227031957,-740.601858,0.0002921,2]
[355515418,1741227031967,-740.601858,0.0002958,2]
[355515420,1741227031978,-740.60186,0.00029671,2]
[355515422,1741227031988,-294.4824043,0.00029787,2]
[355515424,1741227031998,-860.21275926,0.000299,5]
[355515426,1741227032009,-272.83950344,0.00029999,2]
[355515428,1741227032019,-300.0,0.00029999,2]
[355515430,1741227032030,-14760.51865322,0.0003,60]
[355515433,1741227032039,-205.24201124,0.0003,5]
[355515435,1741227032049,-435.471799,0.00030151,2]
[355515437,1741227032058,-500.0,0.00030423,5]
[355515438,1741227032070,-500.0,0.00032024,5]
[355515440,1741227032080,-321.772142,0.00033662,2]
[355515442,1741227032089,-500.0,0.0003371,5]
[355515444,1741227032100,-13534.3452343,0.00033747,2]
[355515446,1741227032110,-500.0,0.00035395,5]
[355515447,1741227032120,-203.750068,0.0003589,2]
[355515448,1741227032129,-160.0,0.00036626,2]
[355515449,1741227032139,-416.66666667,0.0003671,2]
[355515450,1741227032149,-500.0,0.00037165,5]
[355515451,1741227032158,-155.864391,0.0003825,60]
[355515452,1741227032167,-221.77841468,0.00038749,2]
[355515453,1741227032176,-153.34249974,0.00038833,2]
[355515454,1741227032185,-223.10718384,0.00038833,2]
[355515455,1741227032193,-278.48,0.00038839,3]
[355515456,1741227032202,-835.46,0.00038839,3]
[355515457,1741227032211,-338.54365203,0.00038839,3]
[355515458,1741227032222,-677.08730406,0.0003884,3]
[355515459,1741227032231,-1354.17460812,0.00038846,3]
[355515460,1741227032240,-324.30635129,0.00038848,5]
[355515461,1741227032251,-13264.59999364,0.00038848,5]
[355515462,1741227032260,-5153.95558948,0.00038848,5]
[355515463,1741227032528,-12222.48308248,0.00038848,5]
[355515464,1741227032538,-1293.24244541,0.00038848,5]
[355515465,1741227032549,-2040.0000015,0.00038848,5]
[355515466,1741227032560,-2024.25,0.00038848,5]
[355515467,1741227032572,-4450.0,0.00038848,5]
[355515487,1741227038054,-500.0,0.00038847,15]
[355515488,1741227038064,-500.0,0.00038847,2]
[355515489,1741227038082,-500.0,0.00038847,15]
[355515490,1741227038092,-500.0,0.00038847,15]
[355515491,1741227038102,-84.0,0.00038847,15]
[355515492,1741227038126,-416.0,0.00038847,15]
[355515493,1741227038137,-163.32341225,0.00038847,2]
[355515494,1741227038147,-500.0,0.00038847,15]
[355515495,1741227038157,-500.0,0.00038847,15]
[355515497,1741227038166,-396.30432916,0.00038847,15]
[355515499,1741227038176,-500.0,0.00038847,15]
[355515501,1741227038186,-233.95708208,0.00038847,15]
[355515502,1741227038195,-500.0,0.00038847,15]
[355515503,1741227038205,-500.0,0.00038847,15]
[355515504,1741227038214,-500.0,0.00038847,2]
[355515505,1741227038225,-500.0,0.00038847,15]
[355515506,1741227038235,-500.0,0.00038847,15]
[355515507,1741227038244,-500.0,0.00038847,15]
[355515508,1741227038254,-500.0,0.00038847,2]
[355515509,1741227038264,-500.0,0.00038847,15]
[355515510,1741227038273,-500.0,0.00038847,15]
[355515511,1741227038283,-477.53861555,0.00038847,15]
[355515512,1741227038292,-500.0,0.00038847,15]
[355515513,1741227038302,-500.0,0.00038847,15]
[355515514,1741227038311,-500.0,0.00038847,15]
[355515515,1741227038325,-500.0,0.00038847,15]
[355515516,1741227038335,-500.0,0.00038847,15]
[355515517,1741227038345,-500.0,0.00038847,15]
[355515518,1741227038355,-500.0,0.00038847,15]
[355515519,1741227038364,-500.0,0.00038847,15]
[355515520,1741227038373,-500.0,0.00038847,15]
[355515521,1741227038383,-500.0,0.00038847,15]
[355515522,1741227038392,-500.0,0.00038847,15]
[355515523,1741227038402,-500.0,0.00038847,15]
[355515524,1741227038412,-500.0,0.00038847,15]
[355515525,1741227038421,-500.0,0.00038847,15]
[355515526,1741227038430,-500.0,0.00038847,15]
[355515527,1741227038439,-500.0,0.00038847,15]
[355515528,1741227038448,-500.0,0.00038847,15]
[355515529,1741227038458,-500.0,0.00038847,15]
[355515530,1741227038478,-500.0,0.00038847,15]
[355515531,1741227038492,-500.0,0.00038847,15]
[355515532,1741227038501,-500.0,0.00038847,15]
[355515533,1741227038511,-500.0,0.00038847,15]
[355515534,1741227038521,-500.0,0.00038847,15]
[355515535,1741227038531,-500.0,0.00038847,15]
[355515536,1741227038550,-500.0,0.00038847,15]
[355515537,1741227038571,-500.0,0.00038847,15]
[355515538,1741227038582,-500.0,0.00038847,15]
[355515539,1741227038591,-500.0,0.00038847,15]
[355515540,1741227038601,-500.0,0.00038847,15]
[355515541,1741227038610,-500.0,0.00038847,15]
[355515542,1741227038620,-500.0,0.00038847,15]
[355515543,1741227038630,-500.0,0.00038847,15]
[355515544,1741227038639,-500.0,0.00038847,15]
[355515545,1741227038649,-500.0,0.00038847,15]
[355515546,1741227038658,-500.0,0.00038847,15]
[355515547,1741227038668,-500.0,0.00038847,15]
[355515548,1741227038678,-500.0,0.00038847,15]
[355515549,1741227038687,-500.0,0.00038847,15]
[355515550,1741227038696,-500.0,0.00038847,15]
[355515551,1741227038705,-500.0,0.00038847,15]
[355515552,1741227038714,-500.0,0.00038847,15]
[355515553,1741227038723,-500.0,0.00038847,15]
[355515554,1741227038732,-500.0,0.00038847,15]
[355515555,1741227038742,-500.0,0.00038847,15]
[355515556,1741227038751,-500.0,0.00038847,15]
[355515557,1741227038761,-500.0,0.00038847,15]
[355515558,1741227038770,-500.0,0.00038847,15]
[355515559,1741227038779,-500.0,0.00038847,15]
[355515560,1741227038787,-500.0,0.00038847,15]
[355515561,1741227038796,-500.0,0.00038847,15]
[355515562,1741227038805,-500.0,0.00038847,15]
[355515563,1741227038815,-500.0,0.00038847,15]
[355515564,1741227038826,-507.30602038,0.00038847,15]
[355515565,1741227038835,-500.0,0.00038847,15]
[355515566,1741227038845,-500.0,0.00038847,15]
[355515567,1741227038854,-500.0,0.00038847,15]
[355515568,1741227038863,-500.0,0.00038847,15]
[355515569,1741227038873,-500.0,0.00038847,15]
[355515570,1741227038883,-500.0,0.00038847,15]
[355515571,1741227038893,-34896.52120326,0.00038848,5]
[355515572,1741227038903,-525.96846491,0.00038854,120]
[355515573,1741227038912,-477.54158884,0.00038855,15]
[355515574,1741227038922,-404.74949377,0.00038855,15]
[355515575,1741227038933,-264.349993,0.00038856,14]
[355515576,1741227038944,-222000.0,0.00038856,2]
[355515577,1741227039061,-513.23405609,0.00038873,5]
[355515578,1741227039074,-503.74862177,0.00038873,5]
[355515579,1741227039084,-524.88017618,0.00038873,5]
[355515580,1741227039094,-615.91746156,0.00038873,2]
[355515581,1741227039103,-507.6202702,0.00038873,5]
[355515582,1741227039113,-510.49378058,0.00038873,5]
[355515583,1741227039123,-510.14934058,0.00038873,5]
[355515584,1741227039133,-418.92644521,0.00038873,5]
[355515585,1741227039142,-507.07203192,0.00038873,5]
[355515586,1741227039152,-338.54365203,0.00038948,3]
[355515587,1741227039162,-24407.0,0.00038958,120]
[355515588,1741227039171,-501.87475503,0.00038973,5]
[355515589,1741227039181,-507.67036825,0.00039023,5]
[355515590,1741227039192,-4004.85965445,0.00039326,2]
[355515591,1741227039201,-155.41,0.000397,30]
[355515592,1741227039211,-161.66,0.000397,30]
[355515593,1741227039220,-162.85292086,0.000399,6]
[355515594,1741227039233,-221.77841468,0.000399,2]
[355515595,1741227039242,-514.48856899,0.00039973,5]
[355515596,1741227039252,-444.29440002,0.00039973,5]
[355515597,1741227039262,-342.89462722,0.00039973,5]
[355515598,1741227039272,-506.31002355,0.00039973,5]
[355515599,1741227039281,-513.31810815,0.00039973,5]
[355515600,1741227039291,-500.0,0.00039973,5]
[355515601,1741227039301,-502.56869175,0.00039973,5]
[355515602,1741227039310,-505.67880744,0.00039973,5]
[355515603,1741227039323,-151.12500938,0.00039973,5]
[355515604,1741227039333,-500.0,0.00039973,5]
[355515605,1741227039343,-501.93582694,0.00039973,5]
[355515606,1741227039353,-500.0,0.00039973,5]
[355515607,1741227039363,-514.35583138,0.00039973,5]
[355515608,1741227039373,-344.09071042,0.00039973,5]
[355515609,1741227039382,-500.0,0.00039973,5]
[355515610,1741227039392,-504.6376904,0.00039973,5]
[355515611,1741227039401,-500.0,0.00039973,5]
[355515612,1741227039410,-1345.93976,0.00039989,2]
[355515613,1741227039419,-4062.52382436,0.0003999,3]
[355515614,1741227039428,-850134.76553805,0.0004,30]
[355515616,1741227039438,-500.0,0.0004,2]
[355515617,1741227039447,-151.0,0.0004,14]
[355515618,1741227039456,-335.827228,0.0004,14]
[355515619,1741227039465,-335.827228,0.0004,14]
[355515621,1741227039475,-151.0,0.0004,14]
[355515624,1741227039486,-556.96,0.00040209,3]
[355515625,1741227039495,-784.34786013,0.00041095,120]
[355515626,1741227039505,-203.750068,0.00041211,2]
[355515627,1741227039514,-2821.0,0.00042,120]
[355515629,1741227039523,-1000.0,0.000432,90]
[355515630,1741227039533,-157.26,0.000436,36]
[355515631,1741227039542,-2821.0,0.00044,120]
[355515632,1741227039552,-8910.06523696,0.00044383,90]
[355515633,1741227039561,-150.0,0.00044973,10]
[355515634,1741227039572,-151.0,0.00045,120]
[355515636,1741227039582,-170829.0,0.00045,30]
[355515638,1741227039592,-335.827228,0.00045,120]
[355515639,1741227039601,-335.827228,0.00045,120]
[355515641,1741227039610,-151.0,0.00045,120]
[355515643,1741227039620,-157.26,0.000451,39]
[355515644,1741227039629,-157.26,0.000451,39]
[355515645,1741227039638,-558.334779,0.00045317,30]
[355515646,1741227039647,-558.334779,0.00045317,30]
[355515647,1741227039656,-558.334779,0.00045317,30]
[355515648,1741227039666,-558.334779,0.00045317,30]
[355515649,1741227039676,-569.3713045,0.00045317,30]
[355515650,1741227039685,-558.334779,0.00045317,30]
[355515651,1741227039695,-558.334779,0.00045317,30]
[355515652,1741227039704,-558.334779,0.00045317,30]
[355515653,1741227039714,-558.334779,0.00045317,30]
[355515655,1741227039723,-558.334779,0.00045317,30]
[355515657,1741227039733,-558.334779,0.00045317,30]
[355515659,1741227039743,-558.334779,0.00045317,30]
[355515661,1741227039752,-558.334779,0.00045317,30]
[355515663,1741227039761,-558.334779,0.00045317,30]
[355515665,1741227039770,-558.334779,0.00045317,30]
[355515667,1741227039779,-558.334779,0.00045317,30]
[355515669,1741227039789,-1116.156196,0.00045317,30]
[355515671,1741227039798,-558.334779,0.00045317,30]
[355515673,1741227039807,-1067.7138814,0.00045452,10]
[355515675,1741227039816,-304.12620344,0.00045452,10]
[355515677,1741227039828,-1000.0,0.00045452,10]
[355515679,1741227039837,-1000.0,0.00045452,10]
[355515681,1741227039846,-1000.0,0.00045452,10]
[355515683,1741227039856,-1000.0,0.00045452,10]
[355515685,1741227039866,-250.0,0.00045521,10]
[355515687,1741227039875,-351.5826813,0.00045601,4]
[355515689,1741227039885,-2821.0,0.00046,120]
[355515691,1741227039895,-1000.0,0.00046,120]
[355515694,1741227039907,-350.0,0.00046068,10]
[355515695,1741227039916,-5474.70045439,0.00046475,2]
[355515697,1741227039926,-203.750068,0.00046532,2]
[355515699,1741227039937,-418.77341259,0.00046575,120]
[355515702,1741227039953,-81.98835609,0.00046575,120]
[355515704,1741227039963,-500.0,0.00046575,120]
[355515706,1741227039972,-503.16018554,0.00046575,120]
[355515708,1741227039983,-501.58992851,0.00046575,120]
[355515710,1741227039992,-500.77010191,0.00046575,120]
[355515712,1741227040001,-502.40508153,0.00046575,120]
[355515714,1741227040010,-501.77964905,0.00046575,120]
[355515715,1741227040020,-500.93076108,0.00046575,120]
[355515717,1741227040030,-500.0,0.00046575,120]
[355515719,1741227040040,-500.0,0.00046575,120]
[355515721,1741227040049,-500.0,0.00046575,120]
[355515723,1741227040058,-500.0,0.00046575,120]
[355515725,1741227040067,-500.0,0.00046575,120]
[355515727,1741227040081,-179.75316049,0.00046575,120]
[355515736,1741227040155,-500.0,0.00039973,5]
[355515738,1741227040165,-255.55669292,0.00046575,120]
[355515742,1741227040176,-78.58844817,0.00046575,120]
[355515746,1741227040186,-500.0,0.00046575,120]
[355515747,1741227040195,-500.0,0.00046575,120]
[355515749,1741227040204,-17.49155183,0.00046575,120]
[355515752,1741227040215,-482.50844817,0.00046575,120]
[355515754,1741227040225,-500.0,0.00046575,120]
[355515756,1741227040234,-500.0,0.00046575,120]
[355515758,1741227040243,-570.68450272,0.00046575,120]
[355515760,1741227040252,-500.0,0.00046575,120]
[355515762,1741227040262,-500.0,0.00046575,120]
[355515763,1741227040271,-547.49549715,0.00046575,120]
[355515764,1741227040280,-601.4829919,0.00046575,120]
[355515765,1741227040289,-372.93258868,0.00046575,120]
[355515767,1741227040299,-504.12193858,0.00046575,120]
[355515769,1741227040307,-509.91806845,0.00046575,120]
[355515771,1741227040317,-514.46950065,0.00046575,120]
[355515772,1741227040329,-506.45862648,0.00046575,120]
[355515775,1741227040341,-66.10710147,0.00046575,120]
[355515777,1741227040351,-244.12973153,0.00046575,120]
[355515779,1741227040363,-259.18068958,0.00046575,120]
[355515781,1741227040372,-182.21245211,0.00046575,120]
[355515782,1741227040384,-338.37837913,0.00046575,120]
[355515784,1741227040393,-154.9041824,0.00046575,14]
[355515789,1741227040438,-360.657413,0.00046575,14]
[355515790,1741227040447,-500.0,0.00046575,120]
[355515792,1741227040456,-467.8000579,0.00046575,120]
[355515794,1741227040466,-500.0,0.00046575,120]
[355515796,1741227040476,-513.83452297,0.00046575,120]
[355515798,1741227040485,-521.08405127,0.00046575,120]
[355515800,1741227040495,-504.77675521,0.00046575,120]
[355515802,1741227040504,-500.0,0.00046575,120]
[355515804,1741227040513,-507.26653227,0.00046575,120]
[355515806,1741227040522,-616.6848449,0.00046575,120]
[355515808,1741227040531,-500.0,0.00046575,120]
[355515810,1741227040540,-504.26659442,0.00046575,120]
[355515812,1741227040549,-500.0,0.00046575,120]
[355515814,1741227040558,-517.58411591,0.00046575,120]
[355515816,1741227040567,-505.64390442,0.00046575,120]
[355515818,1741227040578,-584.54909381,0.00046575,120]
[355515820,1741227040587,-500.0,0.00046575,120]
[355515822,1741227040596,-500.0,0.00046575,120]
[355515824,1741227040605,-506.22390946,0.00046575,120]
[355515826,1741227040615,-512.12941548,0.00046575,120]
[355515828,1741227040623,-500.0,0.00046575,120]
[355515830,1741227040632,-506.40573207,0.00046575,120]
[355515832,1741227040641,-500.0,0.00046575,120]
[355515834,1741227040651,-509.35696324,0.00046575,120]
[355515836,1741227040660,-500.0,0.00046575,120]
[355515838,1741227040669,-500.0,0.00046575,120]
[355515840,1741227040679,-442.467995,0.00046575,120]
[355515842,1741227040688,-500.0,0.00046575,120]
[355515844,1741227040697,-500.0,0.00046575,120]
[355515846,1741227040707,-500.0,0.00046575,30]
[355515848,1741227040716,-500.0,0.00046575,120]
[355515850,1741227040725,-518.78176541,0.00046575,120]
[355515852,1741227040735,-500.0,0.00046575,120]
[355515854,1741227040744,-473.45569229,0.00046575,120]
[355515856,1741227040753,-504.72524367,0.00046575,120]
[355515858,1741227040763,-500.0,0.00046575,120]
[355515860,1741227040772,-500.0,0.00046575,120]
[355515862,1741227040781,-500.0,0.00046575,120]
[355515864,1741227040790,-500.0,0.00046575,120]
[355515866,1741227040799,-500.0,0.00046575,120]
[355515868,1741227040808,-500.0,0.00046575,120]
[355515870,1741227040817,-506.49253838,0.00046575,120]
[355515872,1741227040827,-500.0,0.00046575,120]
[355515874,1741227040837,-500.0,0.00046575,120]
[355515876,1741227040846,-527.0294247,0.00046575,120]
[355515878,1741227040855,-500.0,0.00046575,120]
[355515879,1741227040864,-514.23850127,0.00046575,120]
[355515881,1741227040873,-500.0,0.00046575,120]
[355515883,1741227040882,-425.46413527,0.00046575,20]
[355515885,1741227040892,-511.70873995,0.00046575,120]
[355515887,1741227040901,-511.91941474,0.00046575,120]
[355515889,1741227040911,-500.0,0.00046575,120]
[355515891,1741227040920,-500.0,0.00046575,120]
[355515893,1741227040930,-500.0,0.00046575,120]
[355515895,1741227040942,-531.48164496,0.00046575,120]
[355515897,1741227040951,-500.0,0.00046575,120]
[355515899,1741227040960,-500.0,0.00046575,120]
[355515901,1741227040970,-482.59418799,0.00046575,120]
[355515903,1741227040981,-500.0,0.00046575,120]
[355515905,1741227040991,-527.56227311,0.00046575,120]
[355515907,1741227041000,-532.47389813,0.00046575,120]
[355515909,1741227041009,-558.66249528,0.00046575,120]